fUSD/lending_fUSD_20250215
["ID","MTS","AMOUNT","RATE_DAILY","PERIOD"]
[353134852,1739592652604,-1542.3,0.00011162,2]
[353134853,1739592652615,-718.95,0.00011162,2]
[353134854,1739592652627,-1051.63,0.00011162,2]
[353134855,1739592652638,-500.0,0.00011162,2]
[353134856,1739592652649,-1059.44,0.00011162,2]
[353134857,1739592652660,-961.85,0.00011162,2]
[353134858,1739592652671,-500.0,0.00011162,2]
[353134859,1739592652683,-500.0,0.00011162,2]
[353134860,1739592652694,-1361.54,0.00011162,2]
[353134861,1739592652705,-762.61,0.00011162,2]
[353134862,1739592652717,-500.0,0.00011162,2]
[353134863,1739592652728,-500.0,0.00011162,2]
[353134864,1739592652738,-1478.58,0.00011162,2]
[353134865,1739592652749,-2322.72,0.00011162,2]
[353134866,1739592652761,-3790.98,0.00011162,2]
[353134867,1739592652773,-500.0,0.00011162,2]
[353134868,1739592652784,-1305.32,0.00011162,2]
[353134869,1739592652795,-500.0,0.00011162,2]
[353134870,1739592652806,-923.54,0.00011162,2]
[353134871,1739592652817,-500.0,0.00011162,2]
[353134872,1739592652828,-1392.25,0.00011162,2]
[353134873,1739592652839,-500.0,0.00011162,2]
[353134874,1739592652850,-1161.05,0.00011162,2]
[353134875,1739592652861,-921.66,0.00011162,2]
[353134876,1739592652872,-2688.76,0.00011162,2]
[353134877,1739592652883,-1266.18,0.00011162,2]
[353134878,1739592652895,-500.0,0.00011162,2]
[353134879,1739592652907,-839.14,0.00011162,2]
[353134880,1739592652919,-500.0,0.00011162,2]
[353134881,1739592652930,-547.76,0.00011162,2]
[353134882,1739592652941,-500.0,0.00011162,2]
[353134883,1739592652953,-940.41,0.00011162,2]
[353134884,1739592652964,-1185.33,0.00011162,2]
[353134885,1739592652975,-2023.02,0.00011162,2]
[353134886,1739592652986,-500.0,0.00011162,2]
[353134887,1739592652997,-500.0,0.00011162,2]
[353134888,1739592653008,-500.0,0.00011162,2]
[353134889,1739592653020,-886.64,0.00011162,2]
[353134890,1739592653031,-995.91,0.00011162,2]
[353134891,1739592653042,-1834.55,0.00011162,2]
[353134892,1739592653053,-500.0,0.00011162,2]
[353134893,1739592653065,-1107.0,0.00011162,2]
[353134894,1739592653076,-920.6,0.00011162,2]
[353134895,1739592653088,-589.34,0.00011162,2]
[353134896,1739592653100,-500.0,0.00011162,2]
[353134897,1739592653111,-500.0,0.00011163,2]
[353134898,1739592653122,-500.0,0.00011163,2]
[353134899,1739592653136,-500.0,0.00011163,2]
[353134900,1739592653159,-500.0,0.00011163,2]
[353134901,1739592653174,-326.49,0.00011163,2]
[353134902,1739592653185,-500.0,0.00011163,2]
[353134903,1739592653196,-500.0,0.00011163,2]
[353134904,1739592653207,-500.0,0.00011163,2]
[353134905,1739592653219,-500.0,0.00011163,2]
[353134906,1739592653230,-500.0,0.00011163,2]
[353134907,1739592653241,-500.0,0.00011163,2]
[353134908,1739592653251,-500.0,0.00011163,2]
[353134909,1739592653262,-500.0,0.00011163,2]
[353134910,1739592653273,-500.0,0.00011163,2]
[353134911,1739592653284,-500.0,0.00011163,2]
[353134912,1739592653295,-519.72,0.00011163,2]
[353134913,1739592653307,-500.0,0.00011163,2]
[353134914,1739592653318,-790.8,0.00011163,2]
[353134915,1739592653329,-729.0,0.00011163,2]
[353134916,1739592653340,-711.7,0.00011163,2]
[353134917,1739592653351,-568.95,0.00011163,2]
[353134918,1739592653361,-512.97,0.00011163,2]
[353134919,1739592653371,-500.0,0.00011163,2]
[353134920,1739592653383,-500.0,0.00011163,2]
[353134921,1739592653394,-582.32,0.00011163,2]
[353134922,1739592653405,-500.0,0.00011163,2]
[353134923,1739592653416,-500.0,0.00011163,2]
[353134924,1739592653427,-774.39,0.00011163,2]
[353134925,1739592653438,-571.43,0.00011163,2]
[353134926,1739592653449,-500.0,0.00011163,2]
[353134927,1739592653460,-729.23,0.00011163,2]
[353134928,1739592653470,-442.23198479,0.00011163,2]
[353134929,1739592653481,-500.0,0.00011163,2]
[353134930,1739592653491,-500.0,0.00011163,2]
[353134931,1739592653502,-707.91,0.00011163,2]
[353134932,1739592653513,-500.0,0.00011163,2]
[353134933,1739592653523,-500.0,0.00011163,2]
[353134934,1739592653534,-500.0,0.00011163,2]
[353134935,1739592653545,-500.0,0.00011163,2]
[353134936,1739592653555,-500.0,0.00011163,2]
[353134937,1739592653566,-254.97606855,0.00011163,2]
[353134938,1739592653576,-500.0,0.00011163,2]
[353134939,1739592653587,-500.0,0.00011163,2]
[353134940,1739592653597,-500.0,0.00011163,2]
[353134941,1739592653608,-500.0,0.00011163,2]
[353134942,1739592653618,-500.0,0.00011163,2]
[353134943,1739592653629,-500.0,0.00011163,2]
[353134944,1739592653640,-500.0,0.00011163,2]
[353134945,1739592653650,-1226.48,0.00011163,2]
[353134946,1739592653661,-1448.52,0.00011163,2]
[353134947,1739592653672,-638.4,0.00011163,2]
[353134948,1739592653682,-500.0,0.00011163,2]
[353134949,1739592653694,-962.49,0.00011163,2]
[353134950,1739592653704,-12293.99686321,0.00011192,2]
[353134951,1739592654484,-17559.57896813,0.00011192,2]
[353134952,1739592654494,-4454.2938315,0.00011194,2]
[353134953,1739592654504,-1091.0225049,0.00011194,2]
[353134954,1739592654514,-5797.2124802,0.00011194,2]
[353134955,1739592654524,-500.0,0.00011201,2]
[353134956,1739592654534,-500.0,0.00011201,2]
[353134957,1739592654544,-500.0,0.00011204,2]
[353134958,1739592654553,-500.0,0.00011204,2]
[353134959,1739592654563,-509.32,0.00011205,2]
[353134960,1739592654574,-500.0,0.00011205,2]
[353134961,1739592654583,-500.0,0.00011205,2]
[353134962,1739592654593,-779.18,0.00011205,2]
[353134963,1739592654603,-610.94238273,0.00011205,2]
[353134964,1739592654613,-500.0,0.00011205,2]
[353134965,1739592654624,-500.0,0.00011205,2]
[353134966,1739592654634,-500.0,0.00011205,2]
[353134967,1739592654645,-969.28,0.00011205,2]
[353134968,1739592654655,-624.13,0.00011205,2]
[353134969,1739592654665,-500.0,0.00011205,2]
[353134970,1739592654675,-500.0,0.00011205,2]
[353134971,1739592654684,-500.0,0.00011205,2]
[353134972,1739592654694,-500.0,0.00011205,2]
[353134973,1739592654704,-500.0,0.00011205,2]
[353134974,1739592654714,-500.0,0.00011205,2]
[353134975,1739592654724,-500.0,0.00011205,2]
[353134976,1739592654735,-500.0,0.00011205,2]
[353134977,1739592654745,-500.0,0.00011205,2]
[353134978,1739592654754,-500.0,0.00011205,2]
[353134979,1739592654764,-500.0,0.00011205,2]
[353134980,1739592654773,-500.0,0.00011205,2]
[353134981,1739592654783,-612.8,0.00011205,2]
[353134982,1739592654792,-500.0,0.00011205,2]
[353134983,1739592654802,-747.95,0.00011205,2]
[353134984,1739592654811,-563.11,0.00011205,2]
[353134985,1739592654820,-500.0,0.00011205,2]
[353134986,1739592654829,-500.0,0.00011205,2]
[353134987,1739592654838,-500.0,0.00011205,2]
[353134988,1739592654847,-500.0,0.00011205,2]
[353134989,1739592654857,-500.0,0.00011205,2]
[353134990,1739592654867,-500.0,0.00011205,2]
[353134991,1739592654875,-500.0,0.00011205,2]
[353134992,1739592654885,-500.0,0.00011205,2]
[353134993,1739592654895,-414.93865225,0.00011205,2]
[353134994,1739592654905,-500.0,0.00011205,2]
[353134995,1739592654915,-500.0,0.00011205,2]
[353134996,1739592654925,-500.0,0.00011205,2]
[353134997,1739592654935,-500.0,0.00011205,2]
[353134998,1739592654944,-500.0,0.00011205,2]
[353134999,1739592654954,-564.01,0.00011205,2]
[353135000,1739592654964,-500.0,0.00011205,2]
[353135001,1739592654974,-238.75382256,0.00011205,2]
[353135002,1739592654984,-4000.0,0.00011205,2]
[353135003,1739592654993,-500.0,0.00011205,2]
[353135004,1739592655003,-566.36,0.00011205,2]
[353135005,1739592655013,-926.11,0.00011205,2]
[353135006,1739592655023,-1000.0,0.00011205,2]
[353135007,1739592655033,-1317.22,0.00011205,2]
[353135008,1739592655042,-500.0,0.00011205,2]
[353135009,1739592655052,-500.0,0.00011205,2]
[353135010,1739592655062,-500.0,0.00011205,2]
[353135011,1739592655071,-458.44091495,0.00011205,2]
[353135012,1739592655081,-726.39,0.00011205,2]
[353135013,1739592655094,-500.0,0.00011205,2]
[353135014,1739592655104,-500.0,0.00011205,2]
[353135015,1739592655114,-500.0,0.00011205,2]
[353135016,1739592655123,-1448.43,0.00011205,2]
[353135017,1739592655135,-643.54,0.00011205,2]
[353135018,1739592655145,-533.19,0.00011205,2]
[353135019,1739592655154,-651.94,0.00011205,2]
[353135020,1739592655163,-601.41,0.00011205,2]
[353135021,1739592655174,-500.0,0.00011205,2]
[353135022,1739592655184,-500.0,0.00011205,2]
[353135023,1739592655193,-500.0,0.00011205,2]
[353135024,1739592655202,-500.0,0.00011205,2]
[353135025,1739592655212,-639.89,0.00011205,2]
[353135026,1739592655222,-500.0,0.00011205,2]
[353135027,1739592655232,-500.0,0.00011205,2]
[353135028,1739592655242,-500.0,0.00011205,2]
[353135029,1739592655252,-586.88,0.00011205,2]
[353135030,1739592655262,-500.0,0.00011205,2]
[353135031,1739592655271,-228.92,0.00011205,2]
[353135032,1739592655281,-6825.31752363,0.00011221,2]
[353135033,1739592655291,-1200.0,0.00011232,2]
[353135034,1739592655301,-1200.0,0.00011232,2]
[353135035,1739592655310,-1200.0,0.00011232,2]
[353135036,1739592655320,-500.0,0.00011241,2]
[353135037,1739592655330,-931.77,0.00011241,2]
[353135038,1739592655340,-993.24,0.00011241,2]
[353135039,1739592655350,-743.76,0.00011241,2]
[353135040,1739592655359,-508.22,0.00011241,2]
[353135041,1739592655369,-802.69,0.00011241,2]
[353135042,1739592655379,-500.0,0.00011241,2]
[353135043,1739592655389,-500.0,0.00011241,2]
[353135044,1739592655399,-500.0,0.00011241,2]
[353135045,1739592655408,-500.0,0.00011241,2]
[353135046,1739592655418,-500.0,0.00011241,2]
[353135047,1739592655427,-896.78,0.00011241,2]
[353135048,1739592655437,-500.0,0.00011241,2]
[353135049,1739592655446,-531.87325262,0.00011241,2]
[353135050,1739592655455,-500.0,0.00011243,2]
[353135051,1739592655465,-601.14,0.00011243,2]
[353135052,1739592655475,-500.0,0.00011243,2]
[353135053,1739592655485,-566.47,0.00011243,2]
[353135054,1739592655494,-500.0,0.00011243,2]
[353135055,1739592655504,-500.0,0.00011243,2]
[353135056,1739592655513,-500.0,0.00011243,2]
[353135057,1739592655522,-500.0,0.00011243,2]
[353135058,1739592655532,-500.0,0.00011243,2]
[353135059,1739592655541,-500.0,0.00011243,2]
[353135060,1739592655550,-470.23303231,0.00011243,2]
[353135061,1739592655559,-522.75,0.00011243,2]
[353135062,1739592655568,-500.0,0.00011243,2]
[353135063,1739592655578,-500.0,0.00011243,2]
[353135064,1739592655588,-735.72,0.00011243,2]
[353135065,1739592655597,-500.0,0.00011243,2]
[353135066,1739592655607,-500.0,0.00011243,2]
[353135067,1739592655616,-631.69,0.00011243,2]
[353135068,1739592655626,-500.0,0.00011243,2]
[353135069,1739592655635,-593.81,0.00011243,2]
[353135070,1739592655645,-500.0,0.00011243,2]
[353135071,1739592655654,-585.51,0.00011243,2]
[353135072,1739592655663,-500.0,0.00011243,2]
[353135073,1739592655673,-546.39,0.00011243,2]
[353135074,1739592655682,-500.0,0.00011243,2]
[353135075,1739592655691,-896.48,0.00011243,2]
[353135076,1739592655701,-500.0,0.00011243,2]
[353135077,1739592655712,-500.0,0.00011243,2]
[353135078,1739592655721,-934.18,0.00011243,2]
[353135079,1739592655731,-500.0,0.00011243,2]
[353135080,1739592655742,-500.0,0.00011243,2]
[353135081,1739592655753,-717.86,0.00011243,2]
[353135082,1739592655762,-469.687994,0.00011243,2]
[353135083,1739592655772,-1029.62,0.00011243,2]
[353135084,1739592655781,-712.58,0.00011243,2]
[353135085,1739592655790,-519.6,0.00011243,2]
[353135086,1739592655800,-500.0,0.00011243,2]
[353135087,1739592655809,-693.06,0.00011243,2]
[353135088,1739592655818,-539.75245,0.00011243,2]
[353135089,1739592655829,-1192.79,0.00011243,2]
[353135090,1739592655840,-516.28,0.00011243,2]
[353135091,1739592655849,-737.45,0.00011243,2]
[353135092,1739592655860,-500.0,0.00011243,2]
[353135093,1739592655871,-850.72,0.00011243,2]
[353135094,1739592655881,-713.07,0.00011243,2]
[353135095,1739592655892,-500.0,0.00011243,2]
[353135096,1739592655903,-1653.38,0.00011243,2]
[353135097,1739592655915,-774.63,0.00011243,2]
[353135098,1739592655926,-899.35,0.00011243,2]
[353135099,1739592655936,-587.14,0.00011243,2]
[353135100,1739592655947,-524.77,0.00011243,2]
[353135101,1739592655958,-649.6,0.00011243,2]
[353135102,1739592655968,-500.0,0.00011243,2]
[353135103,1739592655978,-574.8,0.00011243,2]
[353135104,1739592655987,-1017.28,0.00011243,2]
[353135105,1739592655996,-1225.39,0.00011243,2]
[353135106,1739592656006,-668.83,0.00011243,2]
[353135107,1739592656015,-585.33,0.00011243,2]
[353135108,1739592656024,-759.44,0.00011243,2]
[353135109,1739592656034,-900.52,0.00011243,2]
[353135110,1739592656043,-3865.18018759,0.00011243,2]
[353135111,1739592656319,-500.0,0.00010958,2]
[353135112,1739592656331,-6.62630079,0.00010997,2]
[353135113,1739592656344,-352.72799642,0.00010997,2]
[353135114,1739592656355,-200.64570279,0.00010997,2]
[353135115,1739592656365,-1803.87981241,0.00011243,2]
[353135116,1739592656376,-904.21,0.00011243,2]
[353135117,1739592656386,-1561.41,0.00011243,2]
[353135118,1739592656397,-1149.86,0.00011243,2]
[353135119,1739592656407,-500.0,0.00011243,2]
[353135120,1739592656416,-1420.44,0.00011243,2]
[353135121,1739592656426,-1241.8,0.00011243,2]
[353135122,1739592656435,-808.21,0.00011243,2]
[353135123,1739592656445,-1265.46,0.00011243,2]
[353135124,1739592656455,-1099.16,0.00011243,2]
[353135125,1739592656465,-3601.73,0.00011243,2]
[353135126,1739592656476,-1182.94,0.00011243,2]
[353135127,1739592656485,-696.23,0.00011243,2]
[353135128,1739592656495,-635.30628793,0.00011243,2]
[353135129,1739592656505,-592.01,0.00011243,2]
[353135130,1739592656515,-670.6,0.00011243,2]
[353135131,1739592656524,-1835.11,0.00011243,2]
[353135132,1739592656534,-1249.2,0.00011243,2]
[353135133,1739592656544,-1794.54,0.00011243,2]
[353135134,1739592656553,-500.0,0.00011243,2]
[353135135,1739592656563,-1458.78,0.00011243,2]
[353135136,1739592656572,-627.57,0.00011243,2]
[353135137,1739592656582,-500.0,0.00011243,2]
[353135138,1739592656591,-500.0,0.00011243,2]
[353135139,1739592656601,-1168.39,0.00011243,2]
[353135140,1739592656610,-500.0,0.00011243,2]
[353135141,1739592656619,-890.83,0.00011243,2]
[353135142,1739592656629,-300.0,0.00011243,2]
[353135143,1739592656639,-300.0,0.00011243,2]
[353135144,1739592656649,-500.0,0.00011244,2]
[353135145,1739592656659,-575.03997891,0.00011244,2]
[353135146,1739592656669,-500.0,0.00011244,2]
[353135147,1739592656679,-500.0,0.00011244,2]
[353135148,1739592656689,-500.0,0.00011244,2]
[353135149,1739592656698,-500.0,0.00011244,2]
[353135150,1739592656708,-500.0,0.00011244,2]
[353135151,1739592656718,-539.98,0.00011244,2]
[353135152,1739592656729,-500.0,0.00011244,2]
[353135153,1739592656739,-500.0,0.00011244,2]
[353135154,1739592656749,-500.0,0.00011244,2]
[353135155,1739592656759,-500.0,0.00011244,2]
[353135156,1739592656768,-500.0,0.00011244,2]
[353135157,1739592656778,-500.0,0.00011244,2]
[353135158,1739592656788,-500.0,0.00011244,2]
[353135159,1739592656798,-500.0,0.00011244,2]
[353135160,1739592656808,-500.0,0.00011244,2]
[353135161,1739592656818,-500.0,0.00011244,2]
[353135162,1739592656827,-500.0,0.00011244,2]
[353135163,1739592656837,-500.0,0.00011244,2]
[353135164,1739592656847,-500.0,0.00011244,2]
[353135165,1739592656857,-699.54,0.00011244,2]
[353135166,1739592656867,-500.0,0.00011244,2]
[353135167,1739592656876,-519.34,0.00011244,2]
[353135168,1739592656886,-500.0,0.00011244,2]
[353135169,1739592656895,-500.0,0.00011244,2]
[353135170,1739592656905,-500.0,0.00011244,2]
[353135171,1739592656915,-500.0,0.00011244,2]
[353135172,1739592656925,-500.0,0.00011244,2]
[353135173,1739592656936,-151.0,0.00011244,2]
[353135174,1739592656946,-500.0,0.00011244,2]
[353135175,1739592656956,-500.0,0.00011244,2]
[353135176,1739592656967,-500.0,0.00011244,2]
[353135177,1739592656977,-662.41,0.00011244,2]
[353135178,1739592656986,-500.0,0.00011244,2]
[353135179,1739592656997,-500.0,0.00011244,2]
[353135180,1739592657007,-289.46373201,0.00011244,2]
[353135181,1739592657017,-669.98,0.00011244,2]
[353135182,1739592657027,-1200.0,0.00011244,2]
[353135183,1739592657038,-500.0,0.00011244,2]
[353135184,1739592657287,-678.11,0.00011244,2]
[353135185,1739592657310,-718.14,0.00011244,2]
[353135186,1739592657321,-500.0,0.00011244,2]
[353135187,1739592657331,-500.0,0.00011244,2]
[353135188,1739592657343,-585.58,0.00011244,2]
[353135189,1739592657354,-500.0,0.00011244,2]
[353135190,1739592657364,-500.0,0.00011244,2]
[353135191,1739592657374,-233.00864574,0.00011244,2]
[353135192,1739592657388,-732.84135426,0.00011244,2]
[353135193,1739592657398,-970.07,0.00011244,2]
[353135194,1739592657408,-500.0,0.00011244,2]
[353135195,1739592657418,-605.66,0.00011244,2]
[353135196,1739592657428,-505.06,0.00011244,2]
[353135197,1739592657438,-1309.55,0.00011244,2]
[353135198,1739592657448,-500.0,0.00011244,2]
[353135199,1739592657458,-820.69,0.00011244,2]
[353135200,1739592657468,-500.0,0.00011244,2]
[353135201,1739592657479,-500.0,0.00011244,2]
[353135202,1739592657489,-1015.49,0.00011244,2]
[353135203,1739592657499,-1073.79,0.00011244,2]
[353135204,1739592657509,-500.0,0.00011244,2]
[353135205,1739592657518,-1353.2,0.00011244,2]
[353135206,1739592657528,-500.0,0.00011244,2]
[353135207,1739592657537,-818.1803108,0.00011244,2]
[353135208,1739592657549,-724.1196892,0.00011244,2]
[353135209,1739592657558,-718.95,0.00011244,2]
[353135210,1739592657568,-1051.63,0.00011244,2]
[353135211,1739592657578,-500.0,0.00011244,2]
[353135212,1739592657587,-1059.44,0.00011244,2]
[353135213,1739592657598,-500.0,0.00011244,2]
[353135214,1739592657608,-961.85,0.00011244,2]
[353135215,1739592657617,-500.0,0.00011244,2]
[353135216,1739592657627,-1361.54,0.00011244,2]
[353135217,1739592657636,-762.61,0.00011244,2]
[353135218,1739592657646,-500.0,0.00011244,2]
[353135219,1739592657656,-500.0,0.00011244,2]
[353135220,1739592657667,-1478.58,0.00011244,2]
[353135221,1739592657677,-2322.72,0.00011244,2]
[353135222,1739592657687,-1827.60136038,0.00011244,2]
[353135223,1739592657699,-1963.37863962,0.00011244,2]
[353135224,1739592657710,-560.06417151,0.00011244,2]
[353135225,1739592657721,-1305.32,0.00011244,2]
[353135226,1739592657730,-500.0,0.00011244,2]
[353135227,1739592657740,-923.54,0.00011244,2]
[353135228,1739592657750,-500.0,0.00011244,2]
[353135229,1739592657760,-1392.25,0.00011244,2]
[353135230,1739592657769,-500.0,0.00011244,2]
[353135231,1739592657779,-1161.05,0.00011244,2]
[353135232,1739592657789,-921.66,0.00011244,2]
[353135233,1739592657799,-2688.76,0.00011244,2]
[353135234,1739592657809,-1266.18,0.00011244,2]
[353135235,1739592657820,-603.93488266,0.00011244,2]
[353135236,1739592657830,-839.14,0.00011244,2]
[353135237,1739592657840,-500.0,0.00011244,2]
[353135238,1739592657850,-547.76,0.00011244,2]
[353135239,1739592657860,-500.0,0.00011244,2]
[353135240,1739592657869,-940.41,0.00011244,2]
[353135241,1739592657878,-1185.33,0.00011244,2]
[353135242,1739592657888,-1053.74053399,0.00011244,2]
[353135243,1739592657900,-631.44,0.00011244,2]
[353135244,1739592657913,-337.83946601,0.00011244,2]
[353135245,1739592657923,-500.0,0.00011244,2]
[353135246,1739592657932,-500.0,0.00011244,2]
[353135247,1739592657941,-18.66053359,0.00011244,2]
[353135248,1739592657954,-481.33946641,0.00011244,2]
[353135249,1739592657965,-886.64,0.00011244,2]
[353135250,1739592657975,-995.91,0.00011244,2]
[353135251,1739592657986,-1693.70122397,0.00011244,2]
[353135252,1739592657998,-140.84877603,0.00011244,2]
[353135253,1739592658008,-500.0,0.00011244,2]
[353135254,1739592658018,-2.46720167,0.00011244,2]
[353135255,1739592658029,-602.7521288,0.00011244,2]
[353135256,1739592658041,-501.78066953,0.00011244,2]
[353135257,1739592658051,-920.6,0.00011244,2]
[353135258,1739592658061,-589.34,0.00011244,2]
[353135259,1739592658070,-30.33720786,0.00011244,2]
[353135260,1739592658083,-446.75279214,0.00011244,2]
[353135261,1739592658096,-4750.29714799,0.00011244,2]
[353135262,1739592658107,-21241.12395857,0.00011244,2]
[353135263,1739592658117,-500.0,0.00011245,2]
[353135264,1739592658126,-500.0,0.00011245,2]
[353135265,1739592658135,-500.0,0.00011245,2]
[353135266,1739592658145,-500.0,0.00011245,2]
[353135267,1739592658156,-500.0,0.00011245,2]
[353135268,1739592658166,-500.0,0.00011245,2]
[353135269,1739592658178,-500.0,0.00011245,2]
[353135270,1739592658188,-500.0,0.00011245,2]
[353135271,1739592658198,-500.0,0.00011245,2]
[353135272,1739592658208,-500.0,0.00011245,2]
[353135273,1739592658218,-500.0,0.00011245,2]
[353135274,1739592658229,-500.0,0.00011245,2]
[353135275,1739592658239,-500.0,0.00011245,2]
[353135276,1739592658249,-500.0,0.00011245,2]
[353135277,1739592658259,-790.8,0.00011245,2]
[353135278,1739592658268,-729.0,0.00011245,2]
[353135279,1739592658277,-711.7,0.00011245,2]
[353135280,1739592658287,-568.95,0.00011245,2]
[353135281,1739592658298,-512.97,0.00011245,2]
[353135282,1739592658308,-500.0,0.00011245,2]
[353135283,1739592658319,-500.0,0.00011245,2]
[353135284,1739592658330,-582.32,0.00011245,2]
[353135285,1739592658340,-500.0,0.00011245,2]
[353135286,1739592658350,-500.0,0.00011245,2]
[353135287,1739592658360,-774.39,0.00011245,2]
[353135288,1739592658370,-571.43,0.00011245,2]
[353135289,1739592658380,-500.0,0.00011245,2]
[353135290,1739592658389,-729.23,0.00011245,2]
[353135291,1739592658399,-151.0,0.00011245,2]
[353135292,1739592658408,-500.0,0.00011245,2]
[353135293,1739592658418,-500.0,0.00011245,2]
[353135294,1739592658427,-707.91,0.00011245,2]
[353135295,1739592658437,-500.0,0.00011245,2]
[353135296,1739592658447,-500.0,0.00011245,2]
[353135297,1739592658456,-500.0,0.00011245,2]
[353135298,1739592658466,-500.0,0.00011245,2]
[353135299,1739592658479,-268.11289663,0.00011245,2]
[353135300,1739592658488,-500.0,0.00011245,2]
[353135301,1739592658498,-500.0,0.00011245,2]
[353135302,1739592658508,-500.0,0.00011245,2]
[353135303,1739592658518,-500.0,0.00011245,2]
[353135304,1739592658528,-500.0,0.00011245,2]
[353135305,1739592658538,-500.0,0.00011245,2]
[353135306,1739592658548,-500.0,0.00011245,2]
[353135307,1739592658558,-1448.52,0.00011245,2]
[353135308,1739592658570,-638.4,0.00011245,2]
[353135309,1739592658580,-500.0,0.00011245,2]
[353135310,1739592658589,-962.49,0.00011245,2]
[353135311,1739592658599,-331.44141234,0.00011269,2]
[353135312,1739592658609,-150.0,0.00011271,2]
[353135313,1739592658619,-258.849,0.00011286,2]
[353135314,1739592658628,-500.0,0.00011286,2]
[353135315,1739592658638,-300.0,0.00011286,2]
[353135316,1739592658648,-151.0,0.00011287,2]
[353135317,1739592658658,-151.0,0.00011287,2]
[353135318,1739592658668,-151.0,0.00011287,2]
[353135319,1739592658678,-151.0,0.00011287,2]
[353135320,1739592658688,-151.0,0.00011287,2]
[353135321,1739592658698,-151.0,0.00011287,2]
[353135322,1739592658707,-151.0,0.00011287,2]
[353135323,1739592658717,-151.0,0.00011287,2]
[353135324,1739592658728,-151.0,0.00011287,2]
[353135325,1739592658737,-151.0,0.00011287,2]
[353135326,1739592658747,-151.0,0.00011287,2]
[353135327,1739592658757,-151.0,0.00011287,2]
[353135328,1739592658768,-151.0,0.00011287,2]
[353135329,1739592658777,-151.0,0.00011287,2]
[353135330,1739592658787,-151.0,0.00011287,2]
[353135331,1739592658798,-151.0,0.00011287,2]
[353135332,1739592658808,-151.0,0.00011287,2]
[353135333,1739592658818,-151.0,0.00011287,2]
[353135334,1739592658827,-151.0,0.00011287,2]
[353135335,1739592658837,-151.0,0.00011287,2]
[353135336,1739592658847,-151.0,0.00011287,2]
[353135337,1739592658857,-151.0,0.00011287,2]
[353135338,1739592658867,-151.0,0.00011287,2]
[353135339,1739592658877,-151.0,0.00011287,2]
[353135340,1739592658887,-151.0,0.00011287,2]
[353135341,1739592658897,-151.0,0.00011287,2]
[353135342,1739592658907,-151.0,0.00011287,2]
[353135343,1739592658917,-151.0,0.00011287,2]
[353135344,1739592658927,-151.0,0.00011287,2]
[353135345,1739592658937,-151.0,0.00011287,2]
[353135346,1739592658947,-151.0,0.00011287,2]
[353135347,1739592658958,-151.0,0.00011287,2]
[353135348,1739592658967,-151.0,0.00011287,2]
[353135349,1739592658976,-151.0,0.00011287,2]
[353135350,1739592658986,-151.0,0.00011287,2]
[353135351,1739592658996,-500.0,0.00011287,2]